Cogmind - Beta 12 @@@ ROGUE MODE // 2023.04.25 @ 13:33:15 Player: Mr Goldstein Result: Self-destructed Performance ------------- Evolutions (6) 3000 Regions Visited (13) 2600 Robots Destroyed (9) 45 Value Destroyed (124) 124 Prototype IDs (23) 460 Alien Tech Used (0) 0 Bonus (1000) 1000 TOTAL SCORE: 7229 Bonus ------- Entered DSFs 1000 Cogmind --------- Core Integrity 966/1150 Matter 220/300 Energy 99/100 System Corruption 0% Temperature Cool (0) Movement Core (50) Location -4/Factory Parts ------- > --- POWER (3) -------- (None) > --- PROPULSION (7) --- (None) > --- UTILITY (7) ------ Improved Signal Interpreter Advanced Hacking Suite Advanced Hacking Suite > --- WEAPON (2) ------- (None) > --- INVENTORY (5) ---- Light Antimatter Reactor Large Storage Unit Rocket Launcher Chainsword Peak State ------------ > --- POWER ------------ (None) > --- PROPULSION ------- Flight Unit > --- UTILITY ---------- Cooling System Improved Signal Interpreter Advanced Thermal Shield Advanced Hacking Suite Advanced Hacking Suite Advanced Hacking Suite Advanced Hacking Suite > --- WEAPON ----------- (None) > --- INVENTORY -------- Light Angular Momentum Engine Large Storage Unit Rocket Launcher Chainsword [Rating: 38] Favorites ----------- Power Micro Nuclear Core Engine Improved Ion Engine Power Core Micro Nuclear Core Propulsion Flight Unit Wheel Compact Wheel Flight Unit Flight Unit Utility Cooling System Device Cooling System Storage Large Storage Unit Processor Improved Signal Interpreter Hackware Hacking Suite Protection Hardened Light Armor Plating Weapon Heavy Hammer Launcher Rocket Launcher Impact Weapon Heavy Hammer Build | -11 -10 -10 -9 -9 -9 -8 -8 -7 -7 -6 -5 -5 -4 ------- Run | Jun Mat Min Mat Min Exi Min Mat Fac DSF Fac Fac DSF Fac Slots Evolved 12 | . . . 2 . . . 2 2 . 2 2 . 2 Power 2 | . . . . . . . . . . 1 . . 1 Propulsion 5 | . . . 2 . . . 2 . . 1 . . . Utility 5 | . . . . . . . . 2 . . 2 . 1 Weapon . | . . . . . . . . . . . . . . Parts Attached 43 | . 2 5 9 2 3 . . 4 . 6 2 9 1 Power 4 | . . . 1 . 1 . . . . 1 . 1 . Engine 3 | . . . 1 . . . . . . 1 . 1 . Core 1 | . . . . . 1 . . . . . . . . Reactor . | . . . . . . . . . . . . . . Propulsion 11 | . 2 2 3 1 . . . 3 . . . . . Treads . | . . . . . . . . . . . . . . Leg . | . . . . . . . . . . . . . . Wheel 2 | . 2 . . . . . . . . . . . . Hover . | . . . . . . . . . . . . . . Flight 9 | . . 2 3 1 . . . 3 . . . . . Utility 21 | . . . 5 . . . . 1 . 4 2 8 1 Device 5 | . . . 2 . . . . . . 2 . . 1 Storage 2 | . . . 1 . . . . 1 . . . . . Processor 2 | . . . . . . . . . . 1 1 . . Hackware 10 | . . . . . . . . . . 1 1 8 . Protection 2 | . . . 2 . . . . . . . . . . Artifact . | . . . . . . . . . . . . . . Weapon 7 | . . 3 . 1 2 . . . . 1 . . . Energy Gun . | . . . . . . . . . . . . . . Energy Cannon . | . . . . . . . . . . . . . . Ballistic Gun . | . . . . . . . . . . . . . . Ballistic Cannon . | . . . . . . . . . . . . . . Launcher 3 | . . 2 . 1 . . . . . . . . . Special Weapon . | . . . . . . . . . . . . . . Impact Weapon 4 | . . 1 . . 2 . . . . 1 . . . Slashing Weapon . | . . . . . . . . . . . . . . Piercing Weapon . | . . . . . . . . . . . . . . Special Melee Weapon . | . . . . . . . . . . . . . . Unidentified Prototypes . | . . . . . . . . . . . . . . Corrupted Parts 1 | . . . . . 1 . . . . . . . . System Corruption 2 | . . . . . 2 . . . . . . . . Parts Lost 11 | . . . . . . . . . . 3 . 4 4 Power . | . . . . . . . . . . . . . . Propulsion 6 | . . . . . . . . . . 3 . 2 1 Utility 5 | . . . . . . . . . . . . 2 3 Weapon . | . . . . . . . . . . . . . . Highest Loss Streak 4 | . . . . . . . . . . 3 . 4 4 To Critical Strikes . | . . . . . . . . . . . . . . Average Slot Usage (%) 59 | . 1 38 67 77 82 88 72 65 . 69 49 43 30 Engine 4 | . . . 8 11 6 . . . . 3 5 2 . Core 2 | . . . . . 4 11 9 7 . 5 . . . Wheel 1 | . 1 14 . . . . . . . . . . . Flight 29 | . . 14 41 44 44 44 36 42 . 39 17 8 3 Device 6 | . . . 5 11 11 11 9 3 . 4 5 5 4 Processor 2 | . . . . . . . . . . 4 8 6 5 Hackware 3 | . . . . . . . . . . 3 10 17 17 Protection 5 | . . . 6 11 11 11 9 7 . 6 . . . Impact Weapon 2 | . . 9 4 . 5 11 9 3 . . . . . Naked Turns 87 | . 87 . . . . . . . . . . . . Heaviest Build 22 | . . 3 14 14 16 16 16 11 11 22 11 11 2 Greatest Support 24 | 3 16 8 16 16 16 16 16 24 24 24 12 12 4 Greatest Overweight (x) . | . . . . . . . . . . . . . . Average Overweight (x) . | . . . . . . . . . . . . . . Largest Inventory Capacity 15 | 5 5 5 15 5 5 5 5 15 5 5 5 5 5 Average Capacity 5 | 5 5 5 5 5 5 5 5 5 5 5 5 5 5 Most Carried 5 | . 3 5 5 5 5 4 5 5 5 5 5 5 5 Average Carried 4 | . 2 4 4 4 4 4 4 4 5 4 4 4 4 Final Capacity 5 | 5 5 5 5 5 5 5 5 5 5 5 5 5 5 Final Carried 5 | . 3 5 5 5 4 4 5 5 5 5 4 4 4 Class Distribution -------------------- 60% | Scavenger-Sprinter 20% | Hacker-Mutant 19% | Mutant Dominant Class ---------------- Mutant | -10/Materials Mutant | -10/Mines Scavenger-Sprinter | -9/Materials Scavenger-Sprinter | -9/Mines Scavenger-Sprinter | -9/Exiles Scavenger-Sprinter | -8/Mines Scavenger-Sprinter | -8/Materials Scavenger-Sprinter | -7/Factory Scavenger-Sprinter | -7/DSF Scavenger-Sprinter | -6/Factory Hacker-Mutant | -5/Factory Hacker-Mutant | -5/DSF Hacker-Mutant | -4/Factory Resources | -11 -10 -10 -9 -9 -9 -8 -8 -7 -7 -6 -5 -5 -4 ----------- Run | Jun Mat Min Mat Min Exi Min Mat Fac DSF Fac Fac DSF Fac Matter Collected 552 | 39 . 54 . 203 156 . . . . 100 . . . Remotely . | . . . . . . . . . . . . . . Salvage Created 130 | . . 36 . 10 84 . . . . . . . . Parts 15 | . . 8 . 3 4 . . . . . . . . Haulers Intercepted . | . . . . . . . . . . . . . . Recyclers Shooed . | . . . . . . . . . . . . . . Parts Field Recycled . | . . . . . . . . . . . . . . Retrieved Matter . | . . . . . . . . . . . . . . Parts Self-Destructed . | . . . . . . . . . . . . . . Prevented . | . . . . . . . . . . . . . . Kills | -11 -10 -10 -9 -9 -9 -8 -8 -7 -7 -6 -5 -5 -4 ------- Run | Jun Mat Min Mat Min Exi Min Mat Fac DSF Fac Fac DSF Fac Combat Hostiles Destroyed 9 | . . 5 . 3 1 . . . . . . . . AOE 8 | . . 5 . 3 . . . . . . . . . Classes Destroyed 2 | . . 1 . . 1 . . . . . . . . Swarmer 8 | . . 5 . 3 . . . . . . . . . Grunt 1 | . . . . . 1 . . . . . . . . Best Kill Streak 3 | . . 3 . 3 1 . . . . . . . . Combat Bots Only 3 | . . 3 . 3 1 . . . . . . . . Max Kills in Single Turn 3 | . . 3 . 2 1 . . . . . . . . Gunslinging . | . . . . . . . . . . . . . . Exploded 3 | . . 3 . 2 . . . . . . . . . Melee . | . . . . . . . . . . . . . . Uniques/NPCs Destroyed . | . . . . . . . . . . . . . . Combat | -11 -10 -10 -9 -9 -9 -8 -8 -7 -7 -6 -5 -5 -4 -------- Run | Jun Mat Min Mat Min Exi Min Mat Fac DSF Fac Fac DSF Fac Damage Taken 987 | . . 24 63 26 . . . . . 379 . 226 269 Core 436 | . . 14 14 . . . . . . 53 . 171 184 Absorbed by Shields 5 | . . . . . . . . . . 5 . . . Core Remaining (%) 95 | 100 . 94 . . . 96 100 . 100 93 . 82 . Volleys Fired 4 | . . 2 . 2 . . . . . . . . . Largest 1 | . . 1 . 1 . . . . . . . . . Hottest 33 | . . 30 . 33 . . . . . . . . . Shots Fired 4 | . . 2 . 2 . . . . . . . . . Gun . | . . . . . . . . . . . . . . Cannon . | . . . . . . . . . . . . . . Launcher 4 | . . 2 . 2 . . . . . . . . . Special . | . . . . . . . . . . . . . . Kinetic . | . . . . . . . . . . . . . . Thermal . | . . . . . . . . . . . . . . Explosive 4 | . . 2 . 2 . . . . . . . . . Electromagnetic . | . . . . . . . . . . . . . . Robot Hit Streak 1 | . . 1 . . . . . . . . . . . Robot Miss Streak 1 | . . . . 1 . . . . . . . . . Penetration Max . | . . . . . . . . . . . . . . Secondary Targets . | . . . . . . . . . . . . . . Shots Hit Robots 3 | . . 1 . . 2 . . . . . . . . Core Hits 9 | . . 5 . 4 . . . . . . . . . Critical Kills . | . . . . . . . . . . . . . . Critical Parts Destroyed . | . . . . . . . . . . . . . . Critical Strikes . | . . . . . . . . . . . . . . Melee Attacks 3 | . . . . . 2 . . . . 1 . . . Impact 3 | . . . . . 2 . . . . 1 . . . Slashing . | . . . . . . . . . . . . . . Piercing . | . . . . . . . . . . . . . . Sneak Attacks 1 | . . . . . 1 . . . . . . . . Combat Hostiles 1 | . . . . . 1 . . . . . . . . Follow-up Attacks . | . . . . . . . . . . . . . . Damage Inflicted 565 | . . 223 . 136 202 . . . . 4 . . . Guns . | . . . . . . . . . . . . . . Cannons . | . . . . . . . . . . . . . . Explosions 359 | . . 223 . 136 . . . . . . . . . Melee 202 | . . . . . 202 . . . . . . . . Ramming 4 | . . . . . . . . . . 4 . . . Kinetic . | . . . . . . . . . . . . . . Thermal . | . . . . . . . . . . . . . . Explosive 359 | . . 223 . 136 . . . . . . . . . Electromagnetic . | . . . . . . . . . . . . . . Impact 202 | . . . . . 202 . . . . . . . . Slashing . | . . . . . . . . . . . . . . Piercing . | . . . . . . . . . . . . . . Highest Corruption 2 | . . . . . 2 2 . . . 1 . . . Average Corruption 1 | . . . . . 2 2 . . . 1 . . . Corruption Purged . | . . . . . . . . . . . . . . Corruption Blocked . | . . . . . . . . . . . . . . Effects 3 | . . . . . 2 . . . . 1 . . . Message Errors 2 | . . . . . 1 . . . . 1 . . . Data Loss (minor) 1 | . . . . . 1 . . . . . . . . Overload Shots . | . . . . . . . . . . . . . . Overflow Damage 84 | . . . . 2 82 . . . . . . . . Projectiles . | . . . . . . . . . . . . . . Explosions 2 | . . . . 2 . . . . . . . . . Melee 82 | . . . . . 82 . . . . . . . . Knockbacks 1 | . . . . . 1 . . . . . . . . Impact 1 | . . . . . 1 . . . . . . . . Kinetic . | . . . . . . . . . . . . . . Secondary . | . . . . . . . . . . . . . . Self-Inflicted Damage 2 | . . . . . . . . . . 2 . . . Shots . | . . . . . . . . . . . . . . Rammed 1 | . . . . . . . . . . 1 . . . Targets Rammed 1 | . . . . . . . . . . 1 . . . Kicked . | . . . . . . . . . . . . . . Crushed . | . . . . . . . . . . . . . . Highest Temperature 310 | . . . . . . . . 46 . 310 . . . Average Temperature 142 | . . . . . . . . 27 . 149 . . . Received Heat Transfer 174 | . . . 9 . . . . . . 153 . . 12 Siege Activations . | . . . . . . . . . . . . . . Robots Corrupted . | . . . . . . . . . . . . . . Combat Hostiles . | . . . . . . . . . . . . . . Parts Fried 1 | . . . . . 1 . . . . . . . . Impact Corruptions 3 | . . . . . 3 . . . . . . . . Robots Melted . | . . . . . . . . . . . . . . Combat Hostiles . | . . . . . . . . . . . . . . Parts Melted . | . . . . . . . . . . . . . . Heat Transferred . | . . . . . . . . . . . . . . Parts Sabotaged . | . . . . . . . . . . . . . . Parts Stolen . | . . . . . . . . . . . . . . Parts Stripped . | . . . . . . . . . . . . . . Power Chain Reactions . | . . . . . . . . . . . . . . Missiles Intercepted . | . . . . . . . . . . . . . . Alert | -11 -10 -10 -9 -9 -9 -8 -8 -7 -7 -6 -5 -5 -4 ------- Run | Jun Mat Min Mat Min Exi Min Mat Fac DSF Fac Fac DSF Fac Peak Influence 292 | . 53 146 109 206 . . 55 24 20 292 195 136 58 Initial 136 | . . 20 56 42 . . . 24 20 10 135 136 58 Average 97 | . 28 113 69 149 . . 35 24 20 113 156 116 50 Maximum Alert Level 1 | . . . . 1 . . . . . 1 . . . Low Security (%) 84 | 100 100 100 100 40 . 100 100 100 100 72 100 100 100 Level 1 15 | . . . . 60 . . . . . 27 . . . Level 2 . | . . . . . . . . . . . . . . Level 3 . | . . . . . . . . . . . . . . Level 4 . | . . . . . . . . . . . . . . Level 5 . | . . . . . . . . . . . . . . High Security . | . . . . . . . . . . . . . . Max Security . | . . . . . . . . . . . . . . Squads Dispatched 7 | . 1 . . . . . 1 . . 3 2 . . Investigation 5 | . . . . . . . 1 . . 3 1 . . Extermination . | . . . . . . . . . . . . . . Reinforcement 2 | . 1 . . . . . . . . . 1 . . Assault . | . . . . . . . . . . . . . . Garrison . | . . . . . . . . . . . . . . Intercept . | . . . . . . . . . . . . . . Searches Triggered . | . . . . . . . . . . . . . . Construction Impeded . | . . . . . . . . . . . . . . Haulers Reinforced . | . . . . . . . . . . . . . . Active Scanning Responses . | . . . . . . . . . . . . . . Cargo Convoy Interrupts . | . . . . . . . . . . . . . . Stealth | -11 -10 -10 -9 -9 -9 -8 -8 -7 -7 -6 -5 -5 -4 --------- Run | Jun Mat Min Mat Min Exi Min Mat Fac DSF Fac Fac DSF Fac Distress Signals 3 | . . . . . . . 1 . . 1 . . 1 Communications Jammed . | . . . . . . . . . . . . . . Distress Signals . | . . . . . . . . . . . . . . Times Spotted 65 | . 4 8 5 6 . . 5 . . 28 2 1 6 Peak Tracking Total 15 | . 3 3 5 7 . . 5 . 1 15 2 1 7 Tactical Retreats 7 | . . . 1 . . . . . . 5 . 1 . Traps | -11 -10 -10 -9 -9 -9 -8 -8 -7 -7 -6 -5 -5 -4 ------- Run | Jun Mat Min Mat Min Exi Min Mat Fac DSF Fac Fac DSF Fac Traps Triggered 4 | . . . . . . . . . . 2 . 1 1 Indirectly . | . . . . . . . . . . . . . . Trap Hack Attempts . | . . . . . . . . . . . . . . Triggered . | . . . . . . . . . . . . . . Disarmed . | . . . . . . . . . . . . . . Reprogrammed . | . . . . . . . . . . . . . . Reused . | . . . . . . . . . . . . . . Traps Extracted . | . . . . . . . . . . . . . . Installed . | . . . . . . . . . . . . . . Triggered . | . . . . . . . . . . . . . . Machines | -11 -10 -10 -9 -9 -9 -8 -8 -7 -7 -6 -5 -5 -4 ---------- Run | Jun Mat Min Mat Min Exi Min Mat Fac DSF Fac Fac DSF Fac Machines Disabled 1 | . . . . . . . . . . 1 . . . Max in Single Turn 1 | . . . . . . . . . . 1 . . . Machines Repaired . | . . . . . . . . . . . . . . Machines Sabotaged . | . . . . . . . . . . . . . . Overloaded Fab Kills . | . . . . . . . . . . . . . . Hacking | -11 -10 -10 -9 -9 -9 -8 -8 -7 -7 -6 -5 -5 -4 --------- Run | Jun Mat Min Mat Min Exi Min Mat Fac DSF Fac Fac DSF Fac Machines Accessed 15 | . 1 . 1 . 1 . 4 1 . 5 2 . . Terminals 11 | . 1 . 1 . . . 4 1 . 3 1 . . Fabricators 2 | . . . . . . . . . . 2 . . . Repair Stations . | . . . . . . . . . . . . . . Recycling Units 1 | . . . . . . . . . . . 1 . . Scanalyzers . | . . . . . . . . . . . . . . Garrison Access . | . . . . . . . . . . . . . . Total Hacks 34 | . 2 . 1 . 1 . 17 1 . 10 2 . . Successful 16 | . 1 . 1 . 1 . 4 1 . 6 2 . . Failed 18 | . 1 . . . . . 13 . . 4 . . . Catastrophic 6 | . . . . . . . 4 . . 2 . . . Database Lockouts . | . . . . . . . . . . . . . . Manual 25 | . 2 . 1 . 1 . 17 . . 3 1 . . Terminals 28 | . 2 . 1 . . . 17 1 . 6 1 . . Fabricators 4 | . . . . . . . . . . 4 . . . Repair Stations . | . . . . . . . . . . . . . . Recycling Units 1 | . . . . . . . . . . . 1 . . Scanalyzers . | . . . . . . . . . . . . . . Garrison Access . | . . . . . . . . . . . . . . Terminal Hacks 6 | . 1 . 1 . 1 . 1 1 . . 1 . . Part Schematic 1 | . . . . . . . 1 . . . . . . Open DSF 2 | . . . . . . . . 1 . . 1 . . Branch Access Points 2 | . 1 . 1 . . . . . . . . . . EX-Prototype ID Bank 1 | . . . . . 1 . . . . . . . . Fabricator Hacks 4 | . . . . . . . . . . 4 . . . Load Schematic 2 | . . . . . . . . . . 2 . . . Build 2 | . . . . . . . . . . 2 . . . Repair Station Hacks . | . . . . . . . . . . . . . . Recycling Unit Hacks . | . . . . . . . . . . . . . . Scanalyzer . | . . . . . . . . . . . . . . Garrison Access Hacks . | . . . . . . . . . . . . . . Unauthorized Hacks 6 | . . . . . . . 3 . . 2 1 . . Terminals 5 | . . . . . . . 3 . . 2 . . . Botnet 5 | . . . . . . . 3 . . 2 . . . Fabricators . | . . . . . . . . . . . . . . Repair Stations . | . . . . . . . . . . . . . . Recycling Units 1 | . . . . . . . . . . . 1 . . Tunnel 1 | . . . . . . . . . . . 1 . . Scanalyzers . | . . . . . . . . . . . . . . Garrison Access . | . . . . . . . . . . . . . . Data Cores Recovered . | . . . . . . . . . . . . . . Used . | . . . . . . . . . . . . . . Hacking Detections 10 | . 1 . . . . . 4 . . 5 . . . Full Trace Events 4 | . . . . . . . 1 . . 3 . . . Feedback Events . | . . . . . . . . . . . . . . Feedback Blocked . | . . . . . . . . . . . . . . Robot Schematics Acquired . | . . . . . . . . . . . . . . Robots Built . | . . . . . . . . . . . . . . Authchips . | . . . . . . . . . . . . . . Time . | . . . . . . . . . . . . . . Total Robot Build Rating . | . . . . . . . . . . . . . . Part Schematics Acquired 1 | . . . . . . . 1 . . . . . . Parts Built 2 | . . . . . . . . . . 2 . . . Authchips . | . . . . . . . . . . . . . . Time 146 | . . . . . . . . . . 146 . . . Total Part Build Rating 6 | . . . . . . . . . . 6 . . . Parts Repaired . | . . . . . . . . . . . . . . Time . | . . . . . . . . . . . . . . Parts Recycled . | . . . . . . . . . . . . . . Recycled Matter . | . . . . . . . . . . . . . . Retrieved Matter . | . . . . . . . . . . . . . . Retrieved Components . | . . . . . . . . . . . . . . Parts Scanalyzed . | . . . . . . . . . . . . . . Part Schematics Acquired . | . . . . . . . . . . . . . . Parts Damaged . | . . . . . . . . . . . . . . Bothacking | -11 -10 -10 -9 -9 -9 -8 -8 -7 -7 -6 -5 -5 -4 ------------ Run | Jun Mat Min Mat Min Exi Min Mat Fac DSF Fac Fac DSF Fac Used RIF Installer . | . . . . . . . . . . . . . . Robots Hacked . | . . . . . . . . . . . . . . Non-combat . | . . . . . . . . . . . . . . Combat . | . . . . . . . . . . . . . . Robot Hacks Applied . | . . . . . . . . . . . . . . Relay Couplers Released . | . . . . . . . . . . . . . . Fabnet Peak Effective % . | . . . . . . . . . . . . . . Robots Rewired 1 | . . . . . 1 . . . . . . . . Allies Hacked . | . . . . . . . . . . . . . . Hacks Repelled . | . . . . . . . . . . . . . . Allies | -11 -10 -10 -9 -9 -9 -8 -8 -7 -7 -6 -5 -5 -4 -------- Run | Jun Mat Min Mat Min Exi Min Mat Fac DSF Fac Fac DSF Fac Total Allies 5 | . . 1 . 3 1 . . . . . . . . Largest Group 4 | . . 1 . 3 4 4 4 . . . . . . Highest-Rated Group 61 | . . 31 . 40 61 61 61 . . . . . . Highest-Rated Ally 31 | . . 31 . 16 21 21 21 . . . . . . Total Orders . | . . . . . . . . . . . . . . Ally Attacks 20 | . . 1 . 19 . . . . . . . . . Total Damage 228 | . . 21 . 207 . . . . . . . . . Kills 3 | . . . . 3 . . . . . . . . . Allies Corrupted . | . . . . . . . . . . . . . . Allies Melted . | . . . . . . . . . . . . . . Intel | -11 -10 -10 -9 -9 -9 -8 -8 -7 -7 -6 -5 -5 -4 ------- Run | Jun Mat Min Mat Min Exi Min Mat Fac DSF Fac Fac DSF Fac Robot Analysis Total . | . . . . . . . . . . . . . . Derelict Logs Recovered 2 | . . 1 . 1 . . . . . . . . . Drone Launches . | . . . . . . . . . . . . . . Drone Recoveries . | . . . . . . . . . . . . . . Exploration | -11 -10 -10 -9 -9 -9 -8 -8 -7 -7 -6 -5 -5 -4 ------------- Run | Jun Mat Min Mat Min Exi Min Mat Fac DSF Fac Fac DSF Fac Turns Passed 1149 | 10 98 119 76 150 204 24 37 12 7 195 81 66 70 Spaces Moved 2634 | 19 182 245 131 330 441 29 114 25 31 638 229 63 157 Core 315 | 19 181 79 . . . . . . . . . . 36 Treads . | . . . . . . . . . . . . . . Legs . | . . . . . . . . . . . . . . Wheels 1 | . 1 . . . . . . . . . . . . Hover . | . . . . . . . . . . . . . . Flight 2318 | . . 166 131 330 441 29 114 25 31 638 229 63 121 Fastest Speed 23 | 50 50 37 31 31 31 31 31 23 23 23 34 34 40 Average Speed 32 | 50 50 41 31 31 31 31 31 23 23 23 34 38 42 Slowest Speed 100 | 50 100 50 37 31 31 31 31 23 23 29 34 40 50 Overloaded Moves . | . . . . . . . . . . . . . . Propulsion Burnouts . | . . . . . . . . . . . . . . Robots Hopped 33 | . . 2 6 6 5 . . . . 12 2 . . Cave-ins Triggered . | . . . . . . . . . . . . . . Exploration Rate (%) 32 | 3 40 62 17 73 88 9 18 1 36 18 10 71 5 Regions Visited 13 Branch Regions 4 Pre-discovered Areas 4 | . . 1 . 2 . . . . . . 1 . . Known Exits Taken 5 | . 1 . 1 . . . . 1 . 1 1 . . Unknown Exits Taken 6 | 1 . 1 . 1 1 1 1 . . . . . . Scrap Searched 4 | . . 2 . 2 . . . . . . . . . Spaces Dug 20 | . . 9 . 11 . . . . . . . . . Terrain Destroyed 40 | . . 16 . 24 . . . . . . . . . Melee . | . . . . . . . . . . . . . . Projectile . | . . . . . . . . . . . . . . AOE 40 | . . 16 . 24 . . . . . . . . . Terrain Rammed . | . . . . . . . . . . . . . . Walls Destroyed . | . . . . . . . . . . . . . . Machines Disabled . | . . . . . . . . . . . . . . Actions | -11 -10 -10 -9 -9 -9 -8 -8 -7 -7 -6 -5 -5 -4 --------- Run | Jun Mat Min Mat Min Exi Min Mat Fac DSF Fac Fac DSF Fac Total 2879 | 18 186 264 161 370 499 43 114 32 30 670 229 102 161 Wait 150 | . . . 16 41 55 15 . . . 15 . 8 . Move 2558 | 18 181 240 118 317 431 28 113 24 30 615 224 62 157 Hop 31 | . . 2 6 6 4 . . . . 11 2 . . Pick Up 17 | . 3 7 3 . . . 1 . . 1 . 1 1 Fast Attach 20 | . 2 2 7 . 1 . . . . 3 1 3 1 Attach 16 | . . 3 1 1 2 . . 4 . 3 1 1 . Detach 14 | . . 2 2 1 1 . . 4 . 2 . 2 . Swap 7 | . . . 1 1 . . . . . . . 5 . Drop 21 | . . 6 7 1 1 . . . . 1 1 2 2 Fire 4 | . . 2 . 2 . . . . . . . . . Melee 3 | . . . . . 2 . . . . 1 . . . Ram . | . . . . . . . . . . . . . . Kick . | . . . . . . . . . . . . . . Crush . | . . . . . . . . . . . . . . Escape Stasis 36 | . . . . . . . . . . 18 . 18 . Rewire 2 | . . . . . 2 . . . . . . . . Trap . | . . . . . . . . . . . . . . Miscellaneous . | . . . . . . . . . . . . . . Route ------- -11/Junkyard -10/Materials (discovered 3 exits: *Mat x2 / *Min) -10/Mines -9/Materials (discovered 4 exits: *Min x2 / *Sto x2) -9/Mines (discovered 3 exits: *Mat x2 / *Exi) -9/Exiles -8/Mines -8/Materials -7/Factory -7/DSF -6/Factory (discovered 2 exits: *Fac / *Low) -5/Factory -5/DSF -4/Factory History --------- Turn | Location | Event 3 | -11/Junkyard | Discovered new exit (range 15) 11 | -11/Junkyard | Entered Materials 44 | -10/Materials | Identified exit to Mines 60 | -10/Materials | Discovered new exit (range 10) 90 | -10/Materials | Discovered new exit (range 11) 109 | -10/Materials | Entered Mines 112 | -10/Mines | Met a Derelict bent on vengeance 156 | -10/Mines | Escorted by a lone wolf Derelict 185 | -10/Mines | Received a Rocket Launcher from a helpful Derelict 222 | -10/Mines | Learned location of Storage (-9) 225 | -10/Mines | Discovered new exit (range 9) 228 | -10/Mines | Entered Materials 228 | -9/Materials | Evolved 2 slots: Propulsion x2 228 | -9/Materials | Discovered new exit (range 11) 238 | -9/Materials | Identified exit to Mines 238 | -9/Materials | Identified exit to Storage 304 | -9/Materials | Entered Mines 305 | -9/Mines | Discovered new exit (range 9) 332 | -9/Mines | Assisted by bots powering up and referring to "LRC-V3" 392 | -9/Mines | Discovered new exit (range 5) 411 | -9/Mines | Learned location of Zion (-6) 413 | -9/Mines | Deemed a non-threat by the Exiles lab entrance 413 | -9/Mines | Discovered new exit (range 5) 454 | -9/Mines | Entered Exiles 454 | -9/Exiles | Found Exiles lab destroyed 454 | -9/Exiles | Accompanied by 3 allies 532 | -9/Exiles | Build established: Scavenger-Sprinter 552 | -9/Exiles | Opened EX-Vault 599 | -9/Exiles | Discovered new exit (range 13) 658 | -9/Exiles | Entered Mines 658 | -8/Mines | Accompanied by 4 allies 664 | -8/Mines | Discovered new exit (range 8) 682 | -8/Mines | Entered Materials 682 | -8/Materials | Accompanied by 4 allies 682 | -8/Materials | Evolved 2 slots: Propulsion x2 717 | -8/Materials | Discovered new exit (range 5) 719 | -8/Materials | Entered Factory 719 | -7/Factory | Evolved 2 slots: Utility x2 731 | -7/Factory | Identified exit to DSF 731 | -7/Factory | Entered DSF 736 | -7/DSF | Discovered new exit (range 11) 738 | -7/DSF | Entered Factory 738 | -6/Factory | Evolved 2 slots: Power x1, Propulsion x1 761 | -6/Factory | Spotted B-75 Beast 833 | -6/Factory | Fabricated Hacking Suite (x1) 843 | -6/Factory | Fabricated Hacking Suite? 909 | -6/Factory | Discovered new exit (range 3) 909 | -6/Factory | Identified exit to Lower Caves 929 | -6/Factory | Discovered new exit (range 15) 933 | -6/Factory | Identified exit to Factory 933 | -6/Factory | Entered another Factory area 933 | -5/Factory | Evolved 2 slots: Utility x2 964 | -5/Factory | Lost 3 parts (3n) 1014 | -5/Factory | Identified exit to DSF 1014 | -5/Factory | Entered DSF 1057 | -5/DSF | Additional patrols routed to DSF 1070 | -5/DSF | Lost 4 parts (2n2u) 1076 | -5/DSF | Discovered new exit (range 11) 1080 | -5/DSF | Identified exit to Factory 1080 | -5/DSF | Entered Factory 1080 | -4/Factory | Evolved 2 slots: Power x1, Utility x1 1150 | -4/Factory | Self-destructed Last Messages --------------- 01076_ EXIT=FOUND 01080_ EXIT=IDENTIFIED: FACTORY PARAMETERS=POWER+1,UTILITY+1 LOCATION=FACTORY GOAL=ESCAPE 01086_ Acquired Adv. Thermal Shield. 01088_ Dropped Adv. Thermal Shield. 01113_ T-07 Excavator is excavating. 01121_ Acquired Lgt. Antimatter Reactor. 01122_ Dropped Lgt. Angular Momentum Engine. 01128_ Triggered Ambush Trap. 01128_ S-27 Virus emerges from a hatch in the floor. 01128_ G-67 Veteran emerges from a hatch in the floor. 01128_ S-27 Virus emerges from a hatch in the floor. 01128_ Adv. Hacking Suite destroyed. 01132_ Flight Unit destroyed. 01134_ T-07 Excavator is excavating. 01135_ U-05 Engineer lays Concrete. 01141_ Adv. Hacking Suite destroyed. 01147_ Cooling System destroyed. Map ----- +----------------------------------------------------+ | ?????????????????????????????????????????????????? | | ?????????????????????????????????????????????????? | | ?????????????????????????????????????????????????? | | ?????????????????????????????????????????????????? | | ?????????????????????????????????????????????????? | | ?????????????????????????????????????????????????? | | ?????????????????????????????????????????????????? | | ?????????????????????????????????????????????????? | | ?????????????????????????????????????????????????? | | ?????????????????????????????????????????????????? | | ?????????????????????????????????????????????????# | | ?????????????????????????????????????????????????# | | ?????????????????????????????????????????????????# | | ?????????????????????????????????????????????????# | | ?????????????????????????????????????????????????# | | ?????????????????????????????????????????????????# | | ?????????????????????????????????????????????????# | | ?????????????????????????????????????????????????# | | ?????????????????????????????????????????????????# | | ?????????????????????????????????????????????????# | | ????????????????????????????????????????#####????# | | ????????????????????????????????????????# #????# | | ????????????????????????????????????????# #????# | | ????????????????????????????????########## ####### | | ???????????????????############## | | ???????????????????# @ # | | ???????????????????# # | | ???????????????????# """" """" # | | ???????????????????# """" """" s# | | ???????????????????# """" """" # ############ | | ???????????????????# """" """"s # #?# | | ???????????????????# # #?# """ """ | | ?????????????????????"""" """" # ###??""" """ | | ?????????????????????"""" """" # +??""" """ | | ???????????????????????"" """" !# ###? | | ???????????????????# """" """" # #?# """ """ | | ???????????????????# # #?????"" """ | | ?????????????????############+### ###???"" """ | | ?????????????? +??? | | ?????????????? #???? | | ?????????????? +???? | | ??????????????? ###??? | | ??????????????? #?????###### | | ????????????????###### T###########+#+#??????# | | ?????????????????????###?????????????????????# """ | | ?????????????????????????????????????????????# """ | | ?????????????????????????????????????????????# """ | | ?????????????????????????????????????????????# """ | | ?????????????????????????????????????????????# """ | | ?????????????????????????????????????????????? """ | +----------------------------------------------------+ Best States ------------- Heat Dissipation 65 Energy Generation 28 Energy Capacity 265 Matter Stores 300 Matter Capacity 300 Sight Range 20 Terrain Scan Density 10 Armor Coverage 150 Evasion (%) 65 Offensive Hacking 56 Item Schematics ----------------- Hacking Suite | -8/Materials | Hacked Robot Schematics ------------------ None Fabricated ------------ Hacking Suite | x1 | -6/Factory Hacking Suite | x1 | -6/Factory Alien Tech Used ----------------- None Achievements -------------- None Challenges ------------ None Game ------ Seed PoweredShieldDerivative Manual? 0 Play Time 00:24:46 Cumulative 140.1 hours Start 2023.04.25 @ 12:48:06 End 2023.04.25 @ 13:33:15 Sessions 1 Manual Loads 0 Difficulty Rogue Special Mode None Game No. 408 Rogue 408 Adventurer 0 Explorer 0 Win Type - Total 5 Types 5/0/0/0/0/0/0/0/0 Lore% 62 Gallery% 68 Achievement% 58 Wizard Run 0 Options --------- ASCII 0 Keyboard 0 Movement Numpad Keybinds 0 Fullscreen 1 Font 16/SmallcapsGlow Map View 75x55 Tactical HUD 1 Map Filters NONE Filters NONE Steam 1 RUN: 2a3a4246-6bcc-4f0c-95c9-3f2cbaa9d11b